[Event "*** Titled Tuesday Blitz"]
[Site "Chess.com"]
[Date "2020.05.19"]
[Round "10"]
[White "ajian"]
[Black "L_lorenzo"]
[Result "0-1"]
[WhiteElo "2302"]
[BlackElo "2050"]
[TimeControl "180+1"]
[EndTime "13:56:54 PDT"]
[Termination "L_lorenzo won on time"]

1. d4 {[%clk 0:03:00.9]} 1... Nf6 {[%clk 0:02:57.7]} 2. c4 {[%clk 0:03:01]} 2...
d6 {[%clk 0:02:57.3]} 3. Nc3 {[%clk 0:03:01.1]} 3... Nbd7 {[%clk 0:02:56.9]} 4.
e4 {[%clk 0:03:01.1]} 4... e5 {[%clk 0:02:57.5]} 5. Nf3 {[%clk 0:03:00.2]} 5...
Be7 {[%clk 0:02:57.4]} 6. Be2 {[%clk 0:03:00.2]} 6... O-O {[%clk 0:02:57.3]} 7.
O-O {[%clk 0:03:00.5]} 7... c6 {[%clk 0:02:57.2]} 8. h3 {[%clk 0:02:52.6]} 8...
a6 {[%clk 0:02:56]} 9. Be3 {[%clk 0:02:52.5]} 9... b5 {[%clk 0:02:55.7]} 10.
cxb5 {[%clk 0:02:38.6]} 10... axb5 {[%clk 0:02:55.3]} 11. a3 {[%clk 0:02:23.7]}
11... Bb7 {[%clk 0:02:44.9]} 12. Rc1 {[%clk 0:02:18.5]} 12... Re8 {[%clk
0:02:41]} 13. Nh4 {[%clk 0:02:02.5]} 13... exd4 {[%clk 0:02:39.4]} 14. Bxd4
{[%clk 0:01:58.5]} 14... c5 {[%clk 0:02:39.7]} 15. Bxf6 {[%clk 0:01:50]} 15...
Nxf6 {[%clk 0:02:26.4]} 16. Bxb5 {[%clk 0:01:49.8]} 16... Rf8 {[%clk 0:02:18.4]}
17. Nf5 {[%clk 0:01:36.8]} 17... Nxe4 {[%clk 0:01:39.5]} 18. Qg4 {[%clk
0:00:41]} 18... Ng5 {[%clk 0:01:27.8]} 19. Rfe1 {[%clk 0:00:37.1]} 19... Bf6
{[%clk 0:01:23]} 20. h4 {[%clk 0:00:36.3]} 20... Ne6 {[%clk 0:01:22.7]} 21. Rcd1
{[%clk 0:00:24]} 21... Nd4 {[%clk 0:01:16.7]} 22. Nxd4 {[%clk 0:00:15.3]} 22...
Bxd4 {[%clk 0:01:10.2]} 23. Bc4 {[%clk 0:00:09.4]} 23... d5 {[%clk 0:01:06.7]}
24. Bd3 {[%clk 0:00:08.8]} 24... Bf6 {[%clk 0:00:58.8]} 25. Qf5 {[%clk
0:00:05.5]} 25... g6 {[%clk 0:00:57.8]} 26. Qg4 {[%clk 0:00:04.8]} 26... Bxh4
{[%clk 0:00:51.3]} 27. Be4 {[%clk 0:00:04.9]} 27... f5 {[%clk 0:00:46.1]} 28.
Qxh4 {[%clk 0:00:02]} 28... Qxh4 {[%clk 0:00:44.6]} 29. Bxd5+ {[%clk 0:00:01.8]}
29... Bxd5 {[%clk 0:00:44.5]} 30. Nxd5 {[%clk 0:00:02.7]} 30... Kh8 {[%clk
0:00:41.4]} 31. g3 {[%clk 0:00:02.7]} 31... Qh6 {[%clk 0:00:40.2]} 32. Nf4
{[%clk 0:00:02.1]} 32... Rad8 {[%clk 0:00:38]} 33. Rc1 {[%clk 0:00:02]} 33...
Rfe8 {[%clk 0:00:37.4]} 34. Rf1 {[%clk 0:00:02.2]} 34... Re5 {[%clk 0:00:35.3]}
35. Kg2 {[%clk 0:00:02.3]} 35... Rd2 {[%clk 0:00:33.8]} 36. Rh1 {[%clk
0:00:02.3]} 36... Qg7 {[%clk 0:00:32.9]} 37. b4 {[%clk 0:00:02.4]} 37... Qb7+
{[%clk 0:00:26.9]} 38. Kh2 {[%clk 0:00:01]} 38... cxb4 {[%clk 0:00:24.2]} 0-1

[Event "*** Titled Tuesday Blitz"]
[Site "Chess.com"]
[Date "2020.05.19"]
[Round "10"]
[White "2008king"]
[Black "sopo-tereladze"]
[Result "1/2-1/2"]
[WhiteElo "2101"]
[BlackElo "2320"]
[TimeControl "180+1"]
[EndTime "13:56:55 PDT"]
[Termination "Game drawn by repetition"]

1. e4 {[%clk 0:03:00.9]} 1... e5 {[%clk 0:02:59.3]} 2. Nf3 {[%clk 0:03:00.3]}
2... Nc6 {[%clk 0:02:59.7]} 3. d4 {[%clk 0:02:59.4]} 3... exd4 {[%clk
0:02:57.5]} 4. Nxd4 {[%clk 0:03:00.3]} 4... Nf6 {[%clk 0:02:57.6]} 5. Nxc6
{[%clk 0:02:59.8]} 5... bxc6 {[%clk 0:02:55.5]} 6. e5 {[%clk 0:02:59.5]} 6...
Qe7 {[%clk 0:02:55.2]} 7. Qe2 {[%clk 0:02:59.5]} 7... Nd5 {[%clk 0:02:54.3]} 8.
h4 {[%clk 0:02:59.8]} 8... d6 {[%clk 0:02:42.4]} 9. c4 {[%clk 0:02:56.3]} 9...
Nb6 {[%clk 0:02:40.3]} 10. exd6 {[%clk 0:02:52.7]} 10... Qxe2+ {[%clk
0:02:41.2]} 11. Bxe2 {[%clk 0:02:52.2]} 11... cxd6 {[%clk 0:02:41.1]} 12. Nc3
{[%clk 0:02:49.7]} 12... Be6 {[%clk 0:02:38.9]} 13. b3 {[%clk 0:02:49.3]} 13...
Be7 {[%clk 0:02:38.7]} 14. Bb2 {[%clk 0:02:48.9]} 14... Bf6 {[%clk 0:02:35.4]}
15. O-O-O {[%clk 0:02:42.9]} 15... O-O-O {[%clk 0:02:32.1]} 16. Ne4 {[%clk
0:02:36.7]} 16... Bxb2+ {[%clk 0:02:29.6]} 17. Kxb2 {[%clk 0:02:37.6]} 17... Kc7
{[%clk 0:02:27.8]} 18. c5 {[%clk 0:02:34.9]} 18... dxc5 {[%clk 0:02:22.4]} 19.
Nxc5 {[%clk 0:02:35.8]} 19... Bd5 {[%clk 0:02:20.8]} 20. f3 {[%clk 0:02:33.2]}
20... Nd7 {[%clk 0:02:18.2]} 21. Na6+ {[%clk 0:02:31.4]} 21... Kb6 {[%clk
0:02:17.7]} 22. Nb4 {[%clk 0:02:31.8]} 22... Nf6 {[%clk 0:02:13.9]} 23. Nxd5+
{[%clk 0:02:28.6]} 23... cxd5 {[%clk 0:02:08.2]} 24. Rd4 {[%clk 0:02:26.2]}
24... Rd6 {[%clk 0:02:04.5]} 25. Rhd1 {[%clk 0:02:25.8]} 25... a5 {[%clk
0:01:55.1]} 26. g4 {[%clk 0:02:25.7]} 26... Re8 {[%clk 0:01:52.5]} 27. Bc4
{[%clk 0:02:18]} 27... Red8 {[%clk 0:01:34.7]} 28. g5 {[%clk 0:02:13.8]} 28...
Nh5 {[%clk 0:01:20]} 29. Rxd5 {[%clk 0:02:12.8]} 29... Rxd5 {[%clk 0:01:18.7]}
30. Rxd5 {[%clk 0:02:13.7]} 30... Rxd5 {[%clk 0:01:10.6]} 31. Bxd5 {[%clk
0:02:14.6]} 31... f6 {[%clk 0:01:11]} 32. Bf7 {[%clk 0:02:00.8]} 32... Nf4
{[%clk 0:00:59.6]} 33. gxf6 {[%clk 0:02:00.5]} 33... gxf6 {[%clk 0:01:00.5]} 34.
Kc3 {[%clk 0:02:00]} 34... Kc5 {[%clk 0:00:57.5]} 35. a3 {[%clk 0:01:58.5]}
35... Ne2+ {[%clk 0:00:56.1]} 36. Kd3 {[%clk 0:01:50.7]} 36... Ng3 {[%clk
0:00:41.4]} 37. h5 {[%clk 0:01:45.1]} 37... Nf5 {[%clk 0:00:37.2]} 38. Kc3
{[%clk 0:01:33]} 38... Nd6 {[%clk 0:00:28.1]} 39. b4+ {[%clk 0:01:31.8]} 39...
axb4+ {[%clk 0:00:29]} 40. axb4+ {[%clk 0:01:32.7]} 40... Kc6 {[%clk 0:00:28.1]}
41. Bg8 {[%clk 0:01:27.9]} 41... h6 {[%clk 0:00:27.7]} 42. Bh7 {[%clk
0:01:25.9]} 42... Kd5 {[%clk 0:00:25.8]} 43. Bg6 {[%clk 0:01:21.6]} 43... Ke5
{[%clk 0:00:22.9]} 44. Kd3 {[%clk 0:01:12.9]} 44... Kd5 {[%clk 0:00:17.7]} 45.
f4 {[%clk 0:01:09.5]} 45... Nb5 {[%clk 0:00:14.4]} 46. Bf7+ {[%clk 0:01:04.2]}
46... Kd6 {[%clk 0:00:14.1]} 47. Kc4 {[%clk 0:01:03.8]} 47... Na3+ {[%clk
0:00:12.3]} 48. Kb3 {[%clk 0:00:54.1]} 48... Nb5 {[%clk 0:00:13.2]} 49. Kc4
{[%clk 0:00:48]} 49... Na3+ {[%clk 0:00:12.1]} 50. Kd3 {[%clk 0:00:48.1]} 50...
Nb5 {[%clk 0:00:11.6]} 51. Be8 {[%clk 0:00:47.5]} 51... Nc7 {[%clk 0:00:08.9]}
52. Bf7 {[%clk 0:00:44.3]} 52... Nb5 {[%clk 0:00:07.7]} 1/2-1/2

[Event "*** Titled Tuesday Blitz"]
[Site "Chess.com"]
[Date "2020.05.19"]
[Round "10"]
[White "jucAxx"]
[Black "JLRHei"]
[Result "0-1"]
[WhiteElo "2099"]
[BlackElo "2321"]
[TimeControl "180+1"]
[EndTime "13:56:55 PDT"]
[Termination "JLRHei won by resignation"]

1. e4 {[%clk 0:03:00.9]} 1... c5 {[%clk 0:02:59]} 2. c3 {[%clk 0:03:00.2]} 2...
d5 {[%clk 0:02:59]} 3. exd5 {[%clk 0:02:59.8]} 3... Qxd5 {[%clk 0:02:59.9]} 4.
d4 {[%clk 0:03:00.2]} 4... Nf6 {[%clk 0:03:00]} 5. Nf3 {[%clk 0:03:00.7]} 5...
e6 {[%clk 0:02:59.7]} 6. Be2 {[%clk 0:03:01.1]} 6... Be7 {[%clk 0:03:00]} 7. Na3
{[%clk 0:03:01.5]} 7... O-O {[%clk 0:03:00.2]} 8. O-O {[%clk 0:03:01.2]} 8...
Nc6 {[%clk 0:03:00.2]} 9. Nc2 {[%clk 0:03:01]} 9... Rd8 {[%clk 0:02:55.5]} 10.
Bg5 {[%clk 0:02:56.4]} 10... Bd7 {[%clk 0:02:50.8]} 11. Ne3 {[%clk 0:02:54.5]}
11... Qd6 {[%clk 0:02:48.5]} 12. Qb3 {[%clk 0:02:46.1]} 12... cxd4 {[%clk
0:02:44.2]} 13. cxd4 {[%clk 0:02:44.9]} 13... Nxd4 {[%clk 0:02:37.9]} 14. Nxd4
{[%clk 0:02:41.1]} 14... Qxd4 {[%clk 0:02:38.8]} 15. Rfd1 {[%clk 0:02:38.8]}
15... Qe5 {[%clk 0:02:34.8]} 16. Bxf6 {[%clk 0:02:31.7]} 16... Bxf6 {[%clk
0:02:20.1]} 17. Ng4 {[%clk 0:02:31.1]} 17... Qxb2 {[%clk 0:02:18.3]} 18. Nxf6+
{[%clk 0:02:30.3]} 18... Qxf6 {[%clk 0:02:19.2]} 19. Qxb7 {[%clk 0:02:30]} 19...
Be8 {[%clk 0:01:46.5]} 20. h3 {[%clk 0:02:16.1]} 20... a5 {[%clk 0:01:30.6]} 21.
Bf3 {[%clk 0:01:55.9]} 21... Rab8 {[%clk 0:01:19.6]} 22. Qc7 {[%clk 0:01:46.8]}
22... a4 {[%clk 0:01:13.2]} 23. Rac1 {[%clk 0:01:42.1]} 23... g6 {[%clk
0:01:06.1]} 24. Qa5 {[%clk 0:01:03.3]} 24... Rdc8 {[%clk 0:00:49.5]} 25. Rxc8
{[%clk 0:01:01.5]} 25... Rxc8 {[%clk 0:00:48.9]} 26. Qa6 {[%clk 0:00:45.2]}
26... Rd8 {[%clk 0:00:44.3]} 27. Rxd8 {[%clk 0:00:27.1]} 27... Qxd8 {[%clk
0:00:45.2]} 28. a3 {[%clk 0:00:19.9]} 28... Kg7 {[%clk 0:00:42]} 29. Qc4 {[%clk
0:00:16.5]} 29... Qf6 {[%clk 0:00:36.3]} 30. Bc6 {[%clk 0:00:15]} 30... Qa1+
{[%clk 0:00:27.9]} 31. Kh2 {[%clk 0:00:14]} 31... Bxc6 {[%clk 0:00:24.8]} 32.
Qxc6 {[%clk 0:00:14.1]} 32... Qxa3 {[%clk 0:00:25.5]} 33. Qe4 {[%clk 0:00:11.7]}
33... Qd6+ {[%clk 0:00:21.4]} 34. g3 {[%clk 0:00:11.2]} 34... a3 {[%clk
0:00:21.8]} 35. Qc2 {[%clk 0:00:09.7]} 35... Qd4 {[%clk 0:00:20.6]} 36. Kg2
{[%clk 0:00:08.5]} 36... Qb2 {[%clk 0:00:19.9]} 0-1

[Event "*** Titled Tuesday Blitz"]
[Site "Chess.com"]
[Date "2020.05.19"]
[Round "10"]
[White "dretch"]
[Black "GlennTipton"]
[Result "1-0"]
[WhiteElo "2779"]
[BlackElo "2526"]
[TimeControl "180+1"]
[EndTime "13:56:56 PDT"]
[Termination "dretch won by resignation"]

1. d4 {[%clk 0:02:59.4]} 1... Nf6 {[%clk 0:03:00.1]} 2. c4 {[%clk 0:02:59.3]}
2... c5 {[%clk 0:03:00]} 3. d5 {[%clk 0:02:59.3]} 3... e6 {[%clk 0:03:00.4]} 4.
Nc3 {[%clk 0:02:59.4]} 4... exd5 {[%clk 0:03:00.8]} 5. cxd5 {[%clk 0:03:00.3]}
5... d6 {[%clk 0:03:01.3]} 6. e4 {[%clk 0:03:00.5]} 6... g6 {[%clk 0:03:01.4]}
7. h3 {[%clk 0:02:59.8]} 7... Bg7 {[%clk 0:03:00.5]} 8. Nf3 {[%clk 0:03:00.2]}
8... O-O {[%clk 0:03:00.4]} 9. Bd3 {[%clk 0:03:00.5]} 9... a6 {[%clk 0:02:55.4]}
10. a4 {[%clk 0:03:00.1]} 10... Nh5 {[%clk 0:02:56]} 11. O-O {[%clk 0:03:00]}
11... Nd7 {[%clk 0:02:56.1]} 12. Re1 {[%clk 0:03:00.2]} 12... Ne5 {[%clk
0:02:39.9]} 13. Be2 {[%clk 0:03:00.1]} 13... Nxf3+ {[%clk 0:02:31.5]} 14. Bxf3
{[%clk 0:03:01]} 14... Qh4 {[%clk 0:02:30.3]} 15. Bxh5 {[%clk 0:02:45.5]} 15...
gxh5 {[%clk 0:02:29.8]} 16. Qd2 {[%clk 0:02:46.1]} 16... f5 {[%clk 0:02:18.4]}
17. Qg5 {[%clk 0:02:45.3]} 17... Qxg5 {[%clk 0:02:13.3]} 18. Bxg5 {[%clk
0:02:46.2]} 18... Re8 {[%clk 0:02:08.3]} 19. Bf4 {[%clk 0:02:41.8]} 19... Bf8
{[%clk 0:01:58.3]} 20. e5 {[%clk 0:02:22.4]} 20... dxe5 {[%clk 0:01:55.2]} 21.
Bxe5 {[%clk 0:02:23.3]} 21... Bd7 {[%clk 0:01:52.2]} 22. a5 {[%clk 0:02:23.1]}
22... Kf7 {[%clk 0:01:36.6]} 23. Re3 {[%clk 0:02:12.8]} 23... c4 {[%clk
0:01:13]} 24. d6 {[%clk 0:02:12.1]} 24... Bc6 {[%clk 0:01:06.7]} 25. Ne2 {[%clk
0:02:00]} 25... Rad8 {[%clk 0:01:00]} 26. Rd1 {[%clk 0:01:58.8]} 26... h4 {[%clk
0:00:54.4]} 27. Rd4 {[%clk 0:01:54.2]} 27... Bh6 {[%clk 0:00:49.9]} 28. Bf4
{[%clk 0:01:49.5]} 28... Bxf4 {[%clk 0:00:37.9]} 29. Nxf4 {[%clk 0:01:41.3]}
29... Rxe3 {[%clk 0:00:33.1]} 30. fxe3 {[%clk 0:01:42.2]} 30... Kf6 {[%clk
0:00:27.7]} 31. Rxc4 {[%clk 0:01:19]} 31... Rxd6 {[%clk 0:00:26.6]} 32. Rd4
{[%clk 0:01:18.9]} 32... Ke7 {[%clk 0:00:18.3]} 33. Kf2 {[%clk 0:01:14]} 33...
Be4 {[%clk 0:00:16.7]} 34. Ne2 {[%clk 0:01:08.6]} 34... Rxd4 {[%clk 0:00:12.7]}
35. exd4 {[%clk 0:01:07.8]} 35... Kd6 {[%clk 0:00:12.1]} 36. Nc3 {[%clk
0:01:02.8]} 36... Ke6 {[%clk 0:00:09.9]} 37. g3 {[%clk 0:00:52.8]} 37... hxg3+
{[%clk 0:00:10.1]} 38. Kxg3 {[%clk 0:00:53.7]} 38... Bc6 {[%clk 0:00:10.4]} 39.
Kf4 {[%clk 0:00:52.2]} 39... Bg2 {[%clk 0:00:10.6]} 40. h4 {[%clk 0:00:46.6]}
40... h6 {[%clk 0:00:09.4]} 41. Nd1 {[%clk 0:00:46.5]} 41... Kd5 {[%clk
0:00:09.5]} 42. Ne3+ {[%clk 0:00:46.4]} 42... Kxd4 {[%clk 0:00:09.9]} 43. Nxg2
{[%clk 0:00:47.3]} 43... Kd3 {[%clk 0:00:10]} 44. Ne3 {[%clk 0:00:46.2]} 44...
Kd4 {[%clk 0:00:09]} 45. Nxf5+ {[%clk 0:00:46.2]} 45... Kc5 {[%clk 0:00:09.9]}
46. Nxh6 {[%clk 0:00:47]} 1-0

[Event "*** Titled Tuesday Blitz"]
[Site "Chess.com"]
[Date "2020.05.19"]
[Round "10"]
[White "Keks2017"]
[Black "Abund"]
[Result "1-0"]
[WhiteElo "2532"]
[BlackElo "2602"]
[TimeControl "180+1"]
[EndTime "13:56:57 PDT"]
[Termination "Keks2017 won on time"]

1. e4 {[%clk 0:02:59.9]} 1... c5 {[%clk 0:02:48.3]} 2. d3 {[%clk 0:02:58.8]}
2... Nc6 {[%clk 0:02:47.5]} 3. g3 {[%clk 0:02:58.8]} 3... g6 {[%clk 0:02:44.1]}
4. Bg2 {[%clk 0:02:58.7]} 4... Bg7 {[%clk 0:02:44.3]} 5. f4 {[%clk 0:02:58.6]}
5... e6 {[%clk 0:02:39.4]} 6. Nf3 {[%clk 0:02:58.4]} 6... Nge7 {[%clk
0:02:38.9]} 7. O-O {[%clk 0:02:58.2]} 7... d6 {[%clk 0:02:37.6]} 8. c3 {[%clk
0:02:58]} 8... O-O {[%clk 0:02:37.8]} 9. Be3 {[%clk 0:02:58]} 9... b6 {[%clk
0:02:34.2]} 10. Bf2 {[%clk 0:02:57.9]} 10... Ba6 {[%clk 0:02:32.9]} 11. Re1
{[%clk 0:02:57.8]} 11... Rc8 {[%clk 0:02:32.7]} 12. a4 {[%clk 0:02:56.4]} 12...
Qd7 {[%clk 0:02:12.4]} 13. Na3 {[%clk 0:02:54.9]} 13... Rfd8 {[%clk 0:02:06.8]}
14. Rb1 {[%clk 0:02:52.9]} 14... Na5 {[%clk 0:01:41.4]} 15. b4 {[%clk
0:02:21.1]} 15... cxb4 {[%clk 0:01:40.3]} 16. cxb4 {[%clk 0:02:20.9]} 16... Rc3
{[%clk 0:01:40.9]} 17. Nb5 {[%clk 0:02:20.8]} 17... Bxb5 {[%clk 0:01:31.4]} 18.
axb5 {[%clk 0:02:20.6]} 18... Nb7 {[%clk 0:01:29]} 19. Nd4 {[%clk 0:02:12]}
19... e5 {[%clk 0:01:14.9]} 20. Ne2 {[%clk 0:02:08]} 20... Ra3 {[%clk
0:00:55.8]} 21. d4 {[%clk 0:01:57]} 21... exf4 {[%clk 0:00:48.5]} 22. Nxf4
{[%clk 0:01:56.5]} 22... Qxb5 {[%clk 0:00:45.6]} 23. Qc1 {[%clk 0:01:40.5]}
23... Ra2 {[%clk 0:00:29.6]} 24. e5 {[%clk 0:01:33.3]} 24... dxe5 {[%clk
0:00:25.2]} 25. dxe5 {[%clk 0:01:24.8]} 25... Rdd2 {[%clk 0:00:17.5]} 26. Be3
{[%clk 0:01:09.2]} 26... Rdc2 {[%clk 0:00:17.7]} 27. Qd1 {[%clk 0:01:09]} 27...
Nc6 {[%clk 0:00:16.2]} 28. Qd7 {[%clk 0:00:55.8]} 28... Nbd8 {[%clk 0:00:16.1]}
29. Bd5 {[%clk 0:00:38]} 29... Bxe5 {[%clk 0:00:09]} 30. Nh3 {[%clk 0:00:15.2]}
30... Rab2 {[%clk 0:00:06.7]} 31. Rxb2 {[%clk 0:00:14.2]} 31... Rxb2 {[%clk
0:00:07.6]} 32. Bh6 {[%clk 0:00:10.8]} 32... Qxb4 {[%clk 0:00:02.6]} 33. Qe8+
{[%clk 0:00:09.8]} 1-0

[Event "*** Titled Tuesday Blitz"]
[Site "Chess.com"]
[Date "2020.05.19"]
[Round "10"]
[White "Novoselski"]
[Black "Storchnoi"]
[Result "1-0"]
[WhiteElo "2326"]
[BlackElo "1975"]
[TimeControl "180+1"]
[EndTime "13:56:59 PDT"]
[Termination "Novoselski won by resignation"]

1. e4 {[%clk 0:03:00.9]} 1... c5 {[%clk 0:02:59.7]} 2. Nf3 {[%clk 0:02:59.9]}
2... Nc6 {[%clk 0:02:59.7]} 3. Nc3 {[%clk 0:02:59]} 3... d6 {[%clk 0:02:59.4]}
4. Bc4 {[%clk 0:02:48.3]} 4... e6 {[%clk 0:02:58.6]} 5. O-O {[%clk 0:02:44.9]}
5... a6 {[%clk 0:02:58.8]} 6. Re1 {[%clk 0:02:44.1]} 6... b5 {[%clk 0:02:56.9]}
7. Bf1 {[%clk 0:02:44.4]} 7... Nf6 {[%clk 0:02:51.2]} 8. a4 {[%clk 0:02:39.3]}
8... b4 {[%clk 0:02:50.4]} 9. Nb1 {[%clk 0:02:37.9]} 9... Be7 {[%clk 0:02:49.8]}
10. d4 {[%clk 0:02:34.4]} 10... cxd4 {[%clk 0:02:43.5]} 11. Nxd4 {[%clk
0:02:35.3]} 11... Nxd4 {[%clk 0:02:40.7]} 12. Qxd4 {[%clk 0:02:36.2]} 12... O-O
{[%clk 0:02:38.5]} 13. c3 {[%clk 0:02:23.7]} 13... a5 {[%clk 0:02:27]} 14. cxb4
{[%clk 0:02:17.3]} 14... axb4 {[%clk 0:02:27.1]} 15. Nd2 {[%clk 0:02:05.7]}
15... Rb8 {[%clk 0:02:15.1]} 16. a5 {[%clk 0:02:00.1]} 16... d5 {[%clk
0:02:09.1]} 17. e5 {[%clk 0:01:55.5]} 17... Nd7 {[%clk 0:02:08.5]} 18. Nb3
{[%clk 0:01:54.4]} 18... Qc7 {[%clk 0:02:01.8]} 19. Bf4 {[%clk 0:01:45.5]} 19...
Ra8 {[%clk 0:02:00.7]} 20. Rec1 {[%clk 0:01:40.2]} 20... Qa7 {[%clk 0:02:00.4]}
21. Qxa7 {[%clk 0:01:37.1]} 21... Rxa7 {[%clk 0:02:00.5]} 22. Be3 {[%clk
0:01:36.3]} 22... Ra8 {[%clk 0:01:59.4]} 23. f4 {[%clk 0:01:35.9]} 23... g6
{[%clk 0:01:58]} 24. a6 {[%clk 0:01:31.9]} 24... Rd8 {[%clk 0:01:09.8]} 25. Bb5
{[%clk 0:01:27.3]} 25... Nf8 {[%clk 0:00:51.4]} 26. Bb6 {[%clk 0:01:20.5]} 26...
Bd7 {[%clk 0:00:39.2]} 27. Bxd8 {[%clk 0:01:13.3]} 27... Bxd8 {[%clk 0:00:39.2]}
28. Bc6 {[%clk 0:00:57.1]} 28... Bxc6 {[%clk 0:00:38.3]} 29. Rxc6 {[%clk
0:00:55.9]} 29... Nd7 {[%clk 0:00:33.2]} 30. Kf1 {[%clk 0:00:43.5]} 30... Bb6
{[%clk 0:00:31.4]} 31. Ke2 {[%clk 0:00:38.8]} 31... Kf8 {[%clk 0:00:22.9]} 32.
g4 {[%clk 0:00:37.2]} 32... Ke7 {[%clk 0:00:22.2]} 33. g5 {[%clk 0:00:36.4]}
33... Bd8 {[%clk 0:00:19.2]} 34. Nc5 {[%clk 0:00:32.4]} 34... Nxc5 {[%clk
0:00:18.6]} 35. Rxc5 {[%clk 0:00:31.3]} 35... Bb6 {[%clk 0:00:18.3]} 36. Rb5
{[%clk 0:00:30.5]} 36... Bd4 {[%clk 0:00:13.7]} 37. Rxb4 {[%clk 0:00:29.3]}
37... Bc5 {[%clk 0:00:12]} 38. Rb7+ {[%clk 0:00:28.8]} 38... Kf8 {[%clk
0:00:11]} 39. b4 {[%clk 0:00:29.3]} 39... Bd4 {[%clk 0:00:10.1]} 40. Ra4 {[%clk
0:00:28.6]} 40... Bg1 {[%clk 0:00:09]} 41. h3 {[%clk 0:00:26.4]} 41... Bd4
{[%clk 0:00:07.7]} 42. b5 {[%clk 0:00:25.6]} 42... Bg1 {[%clk 0:00:06.1]} 43. a7
{[%clk 0:00:24.5]} 43... Bc5 {[%clk 0:00:05.3]} 44. Rb8+ {[%clk 0:00:23.2]} 1-0

[Event "*** Titled Tuesday Blitz"]
[Site "Chess.com"]
[Date "2020.05.19"]
[Round "10"]
[White "Mizner"]
[Black "praveenb2002"]
[Result "0-1"]
[WhiteElo "2552"]
[BlackElo "2726"]
[TimeControl "180+1"]
[EndTime "13:57:01 PDT"]
[Termination "praveenb2002 won on time"]

1. d4 {[%clk 0:03:00.9]} 1... d5 {[%clk 0:02:58.2]} 2. c4 {[%clk 0:03:01.3]}
2... c6 {[%clk 0:02:58]} 3. cxd5 {[%clk 0:03:01.6]} 3... cxd5 {[%clk 0:02:58.1]}
4. Nf3 {[%clk 0:03:02.5]} 4... Nc6 {[%clk 0:02:55.6]} 5. Nc3 {[%clk 0:03:03.4]}
5... Nf6 {[%clk 0:02:53.4]} 6. Bf4 {[%clk 0:03:03.9]} 6... a6 {[%clk 0:02:50.5]}
7. Rc1 {[%clk 0:03:04]} 7... Ne4 {[%clk 0:02:44.9]} 8. Ne5 {[%clk 0:02:59]} 8...
Nxc3 {[%clk 0:02:43.8]} 9. Rxc3 {[%clk 0:02:58.2]} 9... Bd7 {[%clk 0:02:44.1]}
10. Nxd7 {[%clk 0:02:34.8]} 10... Qxd7 {[%clk 0:02:43.9]} 11. e3 {[%clk
0:02:34.2]} 11... e6 {[%clk 0:02:42.2]} 12. a3 {[%clk 0:02:31.9]} 12... Be7
{[%clk 0:02:30.6]} 13. Bd3 {[%clk 0:02:30.2]} 13... O-O {[%clk 0:02:30.7]} 14.
Qc2 {[%clk 0:02:26.7]} 14... f5 {[%clk 0:02:26]} 15. O-O {[%clk 0:02:26.3]}
15... g5 {[%clk 0:02:16.3]} 16. Bg3 {[%clk 0:02:14.5]} 16... Bf6 {[%clk
0:02:16.6]} 17. f4 {[%clk 0:01:50.6]} 17... Qg7 {[%clk 0:02:01.7]} 18. fxg5
{[%clk 0:01:29.6]} 18... Bxg5 {[%clk 0:02:01.1]} 19. Bf4 {[%clk 0:01:17.4]}
19... Bxf4 {[%clk 0:01:48.1]} 20. Rxf4 {[%clk 0:01:16.4]} 20... Kh8 {[%clk
0:01:47.4]} 21. Qf2 {[%clk 0:01:11.1]} 21... Rf6 {[%clk 0:01:46.2]} 22. Rh4
{[%clk 0:01:07]} 22... Rg6 {[%clk 0:01:45.9]} 23. g3 {[%clk 0:01:01.6]} 23...
Rg8 {[%clk 0:01:44.9]} 24. Bxa6 {[%clk 0:00:58.2]} 24... Nxd4 {[%clk 0:01:28.7]}
25. exd4 {[%clk 0:00:48.7]} 25... bxa6 {[%clk 0:01:27.8]} 26. Qf4 {[%clk
0:00:47.5]} 26... Qf6 {[%clk 0:01:10.6]} 27. Rc7 {[%clk 0:00:39.7]} 27... R6g7
{[%clk 0:01:10.2]} 28. Rh6 {[%clk 0:00:30.7]} 28... Qxh6 {[%clk 0:00:33.2]} 29.
Qxh6 {[%clk 0:00:31.6]} 29... Rxc7 {[%clk 0:00:33.2]} 30. Qf6+ {[%clk
0:00:31.8]} 30... Rcg7 {[%clk 0:00:30.6]} 31. Kf2 {[%clk 0:00:24.4]} 31... Re8
{[%clk 0:00:27.8]} 32. b4 {[%clk 0:00:15.7]} 32... Kg8 {[%clk 0:00:27.9]} 33.
Qe5 {[%clk 0:00:13.5]} 33... Rg4 {[%clk 0:00:22.5]} 34. Kf3 {[%clk 0:00:10.2]}
34... Re4 {[%clk 0:00:22.5]} 35. Qd6 {[%clk 0:00:09.1]} 35... Rxd4 {[%clk
0:00:22]} 36. Qxa6 {[%clk 0:00:09.2]} 36... e5 {[%clk 0:00:20.7]} 37. Qc6 {[%clk
0:00:08.3]} 37... e4+ {[%clk 0:00:20.1]} 38. Kf4 {[%clk 0:00:08.2]} 38... e3+
{[%clk 0:00:20.1]} 39. Kg5 {[%clk 0:00:08]} 39... Rde4 {[%clk 0:00:17.6]} 40.
Qxd5+ {[%clk 0:00:06.6]} 40... R4e6 {[%clk 0:00:17.7]} 41. Qd1 {[%clk
0:00:01.9]} 41... e2 {[%clk 0:00:18.1]} 42. Qe1 {[%clk 0:00:02.4]} 42... Rd6
{[%clk 0:00:18.5]} 0-1